bitfinex/quotes_BTCUSD_20250205
["timestamp","ask_amount","ask_price","bid_price","bid_amount"]
[1738758019605,1.56732456,98644.0,98631.0,0.00022365]
[1738758020209,1.56065967,98644.0,98631.0,0.00022365]
[1738758021504,1.56332456,98644.0,98631.0,0.00022365]
[1738758021635,3.06432456,98644.0,98631.0,0.00022365]
[1738758022175,3.06732456,98644.0,98631.0,0.00022365]
[1738758022376,1.56732456,98644.0,98631.0,0.00022365]
[1738758022594,1.66582821,98644.0,98631.0,0.00022365]
[1738758023009,3.50282821,98644.0,98631.0,0.00022365]
[1738758023211,0.42648,98632.0,98631.0,0.00022365]
[1738758023366,1.55071589,98632.0,98631.0,0.00022365]
[1738758023564,1.55636142,98632.0,98631.0,0.00022365]
[1738758023745,1.67552996,98632.0,98631.0,0.00022365]
[1738758023960,1.99852996,98632.0,98631.0,0.00022365]
[1738758024378,3.49852996,98632.0,98631.0,0.00022365]
[1738758024576,0.01666489,98626.0,98620.0,0.00022449]
[1738758024774,0.55145754,98626.0,98620.0,0.00022449]
[1738758024960,0.67696119,98626.0,98620.0,0.00022449]
[1738758025186,2.18259097,98626.0,98625.0,0.01335239]
[1738758026495,2.17592608,98626.0,98625.0,0.01335239]
[1738758026717,2.16079302,98626.0,98625.0,0.01335239]
[1738758026913,0.54778243,98626.0,98625.0,0.01335239]
[1738758027117,0.56444732,98626.0,98625.0,0.01335239]
[1738758027866,0.57344732,98626.0,98625.0,0.01335239]
[1738758028092,0.56344732,98626.0,98625.0,0.01335239]
[1738758028251,0.65695097,98626.0,98625.0,0.01335239]
[1738758028679,0.66195097,98626.0,98625.0,0.01335239]
[1738758029252,0.56944732,98626.0,98625.0,0.01335239]
[1738758029884,0.59244732,98626.0,98625.0,0.01335239]
[1738758030904,0.76706189,98621.0,98620.0,0.00022449]
[1738758031110,1.89692827,98621.0,98620.0,0.00022449]
[1738758031934,1.88692827,98621.0,98620.0,0.00022449]
[1738758032092,1.99990152,98621.0,98620.0,0.00022449]
[1738758032298,2.00390152,98621.0,98620.0,0.00022449]
[1738758032906,3.50390152,98621.0,98620.0,0.00022449]
[1738758033289,3.56491152,98621.0,98620.0,0.00022449]
[1738758034278,3.57223152,98621.0,98620.0,0.00022449]
[1738758034834,1.58152029,98621.0,98620.0,0.00022449]
[1738758035036,1.58884029,98621.0,98620.0,0.00022449]
[1738758035235,1.58152029,98621.0,98620.0,0.00022449]
[1738758035436,1.58884029,98621.0,98620.0,0.00022449]
[1738758035637,1.56905298,98621.0,98620.0,0.00022449]
[1738758035839,1.67155663,98621.0,98620.0,0.00022449]
[1738758036097,1.68155663,98621.0,98620.0,0.00022449]
[1738758036330,1.67155663,98621.0,98620.0,0.00022449]
[1738758036715,1.68155663,98621.0,98620.0,0.00022449]
[1738758037561,1.68822152,98621.0,98620.0,0.00022449]
[1738758038157,1.71122152,98621.0,98620.0,0.00022449]
[1738758038504,3.27223152,98621.0,98620.0,0.00022449]
[1738758040309,3.37893152,98621.0,98620.0,4.9e-07]
[1738758040513,0.430346,98589.0,98588.0,0.00022386]
[1738758040715,1.79174313,98589.0,98588.0,0.00022386]
[1738758040915,1.85834239,98589.0,98588.0,0.00022386]
[1738758041117,3.35834239,98589.0,98588.0,0.00022386]
[1738758041850,3.36470801,98589.0,98588.0,0.00022386]
[1738758042053,3.57971531,98589.0,98588.0,0.00022386]
[1738758042255,4.01041531,98589.0,98588.0,8.6e-07]
[1738758043296,3.90371531,98589.0,98588.0,8.6e-07]
[1738758043503,3.92916419,98589.0,98588.0,8.6e-07]
[1738758043697,3.90416419,98589.0,98588.0,8.6e-07]
[1738758044663,0.67983989,98577.0,98576.0,7.2e-07]
[1738758044849,1.93689943,98577.0,98576.0,7.2e-07]
[1738758045000,1.94247066,98577.0,98576.0,7.2e-07]
[1738758046055,1.94547066,98577.0,98576.0,7.2e-07]
[1738758047423,2.02627066,98577.0,98576.0,7.2e-07]
[1738758047977,3.52627066,98577.0,98576.0,7.2e-07]
[1738758048156,3.53716918,98577.0,98576.0,7.2e-07]
[1738758048363,0.01666489,98568.0,98565.0,0.00022386]
[1738758048561,0.55165754,98568.0,98565.0,0.00022386]
[1738758048964,0.65294948,98568.0,98565.0,0.00022386]
[1738758049213,2.15294948,98568.0,98565.0,0.00022386]
[1738758049664,2.16034948,98568.0,98565.0,0.00022386]
[1738758050216,0.78505689,98566.0,98565.0,7.2e-07]
[1738758050420,0.25067489,98558.0,98557.0,3e-07]
[1738758050621,0.35317854,98558.0,98557.0,3e-07]
[1738758050822,2.01091166,98558.0,98557.0,3e-07]
[1738758051433,2.33491166,98558.0,98557.0,3e-07]
[1738758051748,2.45674481,98558.0,98557.0,3e-07]
[1738758052473,2.47658362,98558.0,98557.0,3e-07]
[1738758052631,1.09006997,98558.0,98557.0,3e-07]
[1738758053201,1.10306997,98558.0,98557.0,3e-07]
[1738758053381,1.1331383,98558.0,98557.0,3e-07]
[1738758053538,1.11306997,98558.0,98557.0,3e-07]
[1738758053717,1.17407997,98558.0,98557.0,3e-07]
[1738758053931,1.27658362,98558.0,98557.0,3e-07]
[1738758054151,1.26658362,98558.0,98557.0,3e-07]
[1738758054364,1.26758362,98558.0,98557.0,3e-07]
[1738758054567,1.27658362,98558.0,98557.0,3e-07]
[1738758055350,2.76758362,98558.0,98557.0,3e-07]
[1738758055582,2.79724852,98558.0,98557.0,3e-07]
[1738758056002,2.78824852,98558.0,98557.0,3e-07]
[1738758056307,2.79724852,98558.0,98557.0,3e-07]
[1738758056524,2.77658362,98558.0,98557.0,3e-07]
[1738758056724,2.35741508,98558.0,98557.0,3e-07]
[1738758056934,0.44940508,98558.0,98557.0,3e-07]
[1738758057176,0.46680508,98558.0,98557.0,3e-07]
[1738758057428,0.45780508,98558.0,98557.0,3e-07]
[1738758057848,0.47346997,98558.0,98557.0,3e-07]
[1738758058029,0.60912314,98558.0,98557.0,3e-07]
[1738758058251,2.10912314,98558.0,98557.0,3e-07]
[1738758058452,2.11312314,98558.0,98557.0,3e-07]
[1738758058750,2.10912314,98558.0,98557.0,3e-07]
[1738758059286,2.10772314,98558.0,98557.0,3e-07]
[1738758059474,0.58757944,98558.0,98557.0,3e-07]
[1738758061409,0.48507579,98558.0,98557.0,3e-07]
[1738758061613,0.32771579,98558.0,98557.0,3e-07]
[1738758061843,0.32907579,98558.0,98557.0,3e-07]
[1738758062236,0.33507579,98558.0,98557.0,3e-07]
[1738758062841,0.32907579,98558.0,98557.0,3e-07]
[1738758063042,0.40256757,98558.0,98557.0,3e-07]
[1738758063285,0.40456757,98558.0,98557.0,3e-07]
[1738758063507,0.26270579,98558.0,98557.0,3e-07]
[1738758063711,0.11787179,98558.0,98557.0,0.0799003]
[1738758063921,0.27006579,98558.0,98557.0,0.0799003]
[1738758064127,0.27006579,98558.0,98557.0,3e-07]
[1738758064950,0.26270579,98558.0,98557.0,3e-07]
[1738758065111,0.11787179,98558.0,98557.0,3e-07]
[1738758065523,0.26806579,98558.0,98557.0,3e-07]
[1738758066292,0.31516437,98558.0,98557.0,3e-07]
[1738758066701,0.28694985,98558.0,98557.0,3e-07]
[1738758067023,0.34795985,98558.0,98557.0,3e-07]
[1738758067408,1.84795985,98558.0,98557.0,3e-07]
[1738758067611,1.99795985,98558.0,98557.0,3e-07]
[1738758069657,1.99895985,98558.0,98557.0,3e-07]
[1738758069993,0.28475585,98558.0,98557.0,3e-07]
[1738758070229,0.43694985,98558.0,98557.0,3e-07]
[1738758070852,0.5394535,98558.0,98557.0,3e-07]
[1738758071072,0.43694985,98558.0,98557.0,3e-07]
[1738758071520,0.43794985,98558.0,98557.0,3e-07]
[1738758071692,0.43694985,98558.0,98557.0,3e-07]
[1738758072062,0.49785985,98558.0,98557.0,3e-07]
[1738758073945,1.99785985,98558.0,98557.0,3e-07]
[1738758074157,2.1003635,98558.0,98557.0,3e-07]
[1738758075293,2.1578635,98558.0,98557.0,3e-07]
[1738758075492,2.16452839,98558.0,98557.0,3e-07]
[1738758075845,2.2190154,98558.0,98557.0,3e-07]
[1738758076441,2.22440265,98558.0,98557.0,3e-07]
[1738758076563,2.22440265,98558.0,98553.0,2.8e-07]
[1738758076564,0.40277489,98554.0,98553.0,2.8e-07]
[1738758076763,0.52757489,98546.0,98545.0,0.00022386]
[1738758076965,1.86408582,98546.0,98545.0,0.00022386]
[1738758077167,3.36408582,98546.0,98545.0,0.00022386]
[1738758077367,3.44318582,98546.0,98545.0,0.00022386]
[1738758077576,3.54568947,98546.0,98545.0,8.6e-07]
[1738758077795,3.54568947,98546.0,98544.0,1.4e-07]
[1738758077796,0.55918889,98545.0,98544.0,1.4e-07]
[1738758077995,1.09627955,98545.0,98544.0,1.4e-07]
[1738758078269,0.70281689,98527.0,98526.0,2.8e-07]
[1738758078494,3.48733979,98527.0,98526.0,2.8e-07]
[1738758078695,3.60272974,98527.0,98526.0,2.8e-07]
[1738758079307,3.67849521,98527.0,98526.0,2.8e-07]
[1738758079760,3.67849521,98527.0,98526.0,0.00014048]
[1738758081875,3.68949703,98527.0,98526.0,0.00014048]
[1738758082302,3.26296849,98527.0,98526.0,0.00014048]
[1738758082484,3.26296849,98527.0,98489.0,0.00022449]
[1738758082485,1.32406004,98527.0,98505.0,0.0758]
[1738758082692,0.10250365,98506.0,98505.0,0.0758]
[1738758082857,0.152281,98502.0,98501.0,0.00014024]
[1738758083052,0.26015905,98502.0,98501.0,0.00014024]
[1738758083256,0.10787805,98502.0,98501.0,0.00014024]
[1738758083534,0.10787805,98502.0,98501.0,0.15242224]
[1738758083893,0.10250365,98502.0,98501.0,0.20225735]
[1738758084092,0.12138771,98502.0,98501.0,0.20225735]
[1738758084839,0.10250365,98502.0,98501.0,0.20225735]
[1738758085042,0.10787458,98502.0,98501.0,0.20225735]
[1738758085243,0.10250365,98502.0,98501.0,0.20225735]
[1738758087515,0.10250365,98502.0,98501.0,0.28395735]
[1738758088439,0.01888406,98521.0,98509.0,0.08503511]
[1738758088645,0.10250365,98520.0,98519.0,0.152254]
[1738758089502,0.10250365,98520.0,98519.0,0.23598911]
[1738758091180,0.00736,98535.0,98534.0,0.15556611]
[1738758091371,0.10986365,98535.0,98534.0,0.15556611]
[1738758091724,0.11525397,98535.0,98534.0,0.15556611]
[1738758092512,0.11525397,98535.0,98534.0,0.15670635]
[1738758092677,0.10986365,98535.0,98534.0,0.15670635]
[1738758092881,0.10986365,98535.0,98534.0,0.15170635]
[1738758093793,0.26209365,98535.0,98534.0,0.00114024]
[1738758094109,0.34937584,98535.0,98534.0,0.00114024]
[1738758094796,0.2863812,98535.0,98534.0,0.00114024]
[1738758098088,0.4363812,98535.0,98534.0,0.00114024]
[1738758098292,0.4972912,98535.0,98534.0,0.00014024]
[1738758098629,1.9972912,98535.0,98534.0,0.00014024]
[1738758098831,2.09979485,98535.0,98534.0,0.00014024]
[1738758099471,1.9972912,98535.0,98534.0,0.00014024]
[1738758100332,2.02778136,98535.0,98534.0,0.00014024]
[1738758101508,1.99951591,98535.0,98534.0,0.00014024]
[1738758103185,2.0061808,98535.0,98534.0,0.00014024]
[1738758103603,2.0364661,98535.0,98534.0,0.00014024]
[1738758103774,2.13896975,98535.0,98534.0,0.00014024]
[1738758104181,2.13696975,98535.0,98534.0,0.00014024]
[1738758104599,2.14296975,98535.0,98534.0,0.00014024]
[1738758105978,2.13696975,98535.0,98534.0,0.00014024]
[1738758106184,2.14596975,98535.0,98534.0,0.00014024]
[1738758106593,2.13589376,98535.0,98534.0,0.00014024]
[1738758106752,2.11568445,98535.0,98534.0,0.00014024]
[1738758107362,2.10668445,98535.0,98534.0,0.00014024]
[1738758107702,2.11568445,98535.0,98534.0,0.00014024]
[1738758108209,2.46268445,98535.0,98534.0,0.00014024]
[1738758108435,2.50942962,98535.0,98534.0,0.00014024]
[1738758108845,2.50942962,98535.0,98534.0,2.4e-07]
[1738758109046,2.53973557,98535.0,98534.0,2.4e-07]
[1738758109247,0.363163,98520.0,98519.0,0.000107]
[1738758109458,1.58990254,98520.0,98519.0,0.00024734]
[1738758109694,1.59524818,98520.0,98519.0,0.00024734]
[1738758109897,3.09524818,98520.0,98519.0,0.00024734]
[1738758110734,3.04193984,98520.0,98519.0,0.00024734]
[1738758112005,3.01163389,98520.0,98519.0,0.00024734]
[1738758113485,3.20736643,98520.0,98519.0,0.00024734]
[1738758113870,3.21804064,98520.0,98519.0,0.00024734]
[1738758114043,3.22604064,98520.0,98519.0,0.00024734]
[1738758114238,3.32854429,98520.0,98519.0,0.00024734]
[1738758114447,3.32054429,98520.0,98519.0,0.00024734]
[1738758114645,3.32954429,98520.0,98519.0,0.00024734]
[1738758114856,3.37737851,98520.0,98519.0,0.00024734]
[1738758115302,3.38637851,98520.0,98519.0,0.00024734]
[1738758115845,3.35984634,98520.0,98519.0,0.00024734]
[1738758118188,3.46654634,98520.0,98519.0,0.00024734]
[1738758118577,3.49420392,98520.0,98519.0,0.00024734]
[1738758118709,3.37136269,98520.0,98519.0,0.00024734]
[1738758118910,1.46793015,98520.0,98519.0,0.00024734]
[1738758119111,1.41893015,98520.0,98519.0,0.00024734]
[1738758119313,1.58910732,98520.0,98519.0,0.00024734]
[1738758119535,3.08910732,98520.0,98519.0,0.00024734]
[1738758119857,3.10898664,98520.0,98519.0,0.00024734]
[1738758120061,1.3886281,98520.0,98519.0,0.00024734]
[1738758120436,1.5386281,98520.0,98519.0,0.00024734]
[1738758122078,1.5296281,98520.0,98519.0,0.00024734]
[1738758122290,1.55992105,98520.0,98519.0,0.00024734]
[1738758122822,1.56692105,98520.0,98519.0,0.00024734]
[1738758122977,1.6694247,98520.0,98519.0,0.00024734]
[1738758124178,3.10755305,98520.0,98519.0,0.00024734]
[1738758124761,3.06692105,98520.0,98519.0,0.00024734]
[1738758125445,1.41692105,98520.0,98519.0,0.00024734]
[1738758125983,1.34869105,98520.0,98519.0,0.00024734]
[1738758126304,1.35597105,98520.0,98519.0,0.00024734]
[1738758126505,1.34529684,98520.0,98519.0,0.00024734]
[1738758126709,1.44780049,98520.0,98519.0,0.00024734]
[1738758127333,1.34529684,98520.0,98519.0,0.00024734]
[1738758128686,1.55620684,98520.0,98519.0,0.00024734]
[1738758129165,3.05620684,98520.0,98519.0,0.00024734]
[1738758130114,3.10340684,98520.0,98519.0,0.00024734]
[1738758130315,3.13490668,98520.0,98519.0,0.00024734]
[1738758130539,0.152281,98502.0,98501.0,0.0001069]
[1738758130746,1.2817221,98502.0,98501.0,0.00024739]
[1738758130945,1.3426321,98502.0,98501.0,0.00024739]
[1738758131169,2.8426321,98502.0,98501.0,0.00024739]
[1738758131792,2.9926321,98502.0,98501.0,0.00024739]
[1738758132069,3.09513575,98502.0,98501.0,0.00024739]
[1738758132539,3.17584699,98502.0,98501.0,0.00024739]
[1738758132950,3.18251188,98502.0,98501.0,0.00024739]
[1738758133735,3.26743346,98502.0,98501.0,0.00024739]
[1738758134058,3.15019879,98502.0,98501.0,0.00024739]
[1738758134678,3.15019879,98502.0,98501.0,0.00018739]
[1738758134679,3.09327721,98502.0,98501.0,0.00018739]
[1738758134905,1.89327721,98502.0,98501.0,0.00018739]
[1738758135302,1.90227721,98502.0,98501.0,0.00018739]
[1738758135498,2.01206086,98502.0,98501.0,0.00018739]
[1738758135722,2.00306086,98502.0,98501.0,0.00018739]
[1738758135879,1.97853193,98502.0,98501.0,0.00018739]
[1738758136276,1.9075464,98502.0,98501.0,0.00018739]
[1738758136474,1.6075464,98502.0,98501.0,0.00018739]
[1738758137078,1.57602828,98502.0,98501.0,0.00018739]
[1738758137283,1.60754819,98502.0,98501.0,0.00018739]
[1738758137849,1.63721308,98502.0,98501.0,3.9e-07]
[1738758137959,3.28941673,98502.0,98501.0,3.9e-07]
[1738758138587,3.70201673,98502.0,98501.0,3.9e-07]
[1738758138819,3.67901673,98502.0,98501.0,3.9e-07]
[1738758138990,0.67987389,98490.0,98489.0,8.8e-07]
[1738758139213,1.85862969,98490.0,98489.0,8.8e-07]
[1738758139413,1.96631899,98490.0,98489.0,8.8e-07]
[1738758139614,3.50883641,98490.0,98489.0,8.8e-07]
[1738758139864,3.07333276,98490.0,98489.0,8.8e-07]
[1738758140084,1.51242276,98490.0,98489.0,8.8e-07]
[1738758140290,1.48818285,98490.0,98489.0,8.8e-07]
[1738758141861,1.48090285,98490.0,98489.0,8.8e-07]
[1738758142064,1.18588385,98490.0,98489.0,0.00333599]
[1738758142278,1.18588385,98490.0,98489.0,0.08373599]
[1738758142481,1.18588385,98490.0,98489.0,0.23603699]
[1738758143115,1.18588385,98490.0,98489.0,0.08373599]
[1738758143696,1.17860385,98490.0,98489.0,0.08373599]
[1738758143896,1.18588385,98490.0,98489.0,0.08373599]
[1738758144495,1.18588385,98490.0,98489.0,0.23603699]
[1738758144689,0.15687161,98490.0,98489.0,0.23603699]
[1738758144929,0.05436796,98490.0,98489.0,0.23603699]
[1738758145244,0.04918231,98490.0,98489.0,0.28413699]
[1738758145953,0.01888936,98501.0,98500.0,0.15561911]
[1738758146092,0.12139301,98501.0,98500.0,0.23801911]
[1738758146318,0.12139301,98501.0,98500.0,0.28671911]
[1738758146565,0.02407472,98501.0,98500.0,0.28671911]
[1738758146767,0.01888936,98501.0,98500.0,0.28671911]
[1738758146918,0.00014065,98502.0,98501.0,0.152282]
[1738758147122,0.00014065,98502.0,98501.0,0.234682]
[1738758149150,0.00014065,98502.0,98501.0,0.23801711]
[1738758149322,0.00014065,98502.0,98501.0,0.41101711]
[1738758149526,0.00014065,98502.0,98501.0,0.41201711]
[1738758150655,0.00014065,98502.0,98501.0,0.41212411]
[1738758150838,0.00014065,98502.0,98501.0,0.41112411]
[1738758151040,0.00036536,98502.0,98501.0,0.41212411]
[1738758151236,0.01888936,98527.0,98505.0,0.01630131]
[1738758151416,0.01888936,98527.0,98526.0,0.234644]
[1738758152475,0.12139301,98527.0,98526.0,0.234644]
[1738758152895,0.12660444,98527.0,98526.0,0.234644]
[1738758153045,0.12660444,98527.0,98526.0,0.08573511]
[1738758153244,0.12660444,98527.0,98526.0,0.00333511]
[1738758154242,0.12660444,98527.0,98526.0,0.15657911]
[1738758156392,0.00521143,98527.0,98526.0,0.28057911]
[1738758156594,0.01888936,98532.0,98531.0,0.00333511]
[1738758156806,0.12139301,98532.0,98531.0,0.15557111]
[1738758157565,0.10250365,98532.0,98531.0,0.15557111]
[1738758158466,0.10250365,98532.0,98531.0,0.15657111]
[1738758161628,0.10250365,98532.0,98531.0,0.16752322]
[1738758163435,0.10272793,98532.0,98531.0,0.16752322]
[1738758168532,0.10272793,98532.0,98531.0,0.00433511]
[1738758168904,0.10812596,98532.0,98531.0,0.00433511]
[1738758169137,0.12701532,98532.0,98531.0,0.35657111]
[1738758169570,0.12161729,98532.0,98531.0,0.35657111]
[1738758169708,0.12701082,98532.0,98531.0,0.35657111]
[1738758170059,0.12161729,98532.0,98531.0,0.35657111]
[1738758171095,0.12161729,98532.0,98531.0,0.55657111]
[1738758171391,0.15187081,98532.0,98531.0,0.55657111]
[1738758173689,0.15187081,98532.0,98531.0,0.75657111]
[1738758176030,0.15187081,98532.0,98531.0,0.95657111]
[1738758178251,0.15187081,98532.0,98531.0,1.15657111]
[1738758179727,0.15187081,98532.0,98531.0,1.00433511]
[1738758179927,0.30410481,98532.0,98531.0,1.001]
[1738758180133,0.30410481,98532.0,98531.0,1.00433511]
[1738758180376,0.30950233,98532.0,98531.0,1.001]
[1738758180578,0.43260233,98532.0,98531.0,1.001]
[1738758180980,0.49351233,98532.0,98531.0,1.001]
[1738758181980,0.49351233,98532.0,98531.0,1.0]
[1738758182371,0.49351233,98532.0,98531.0,1.001]
[1738758182572,0.49351233,98532.0,98531.0,1.0]
[1738758183079,0.49551233,98532.0,98531.0,1.0]
[1738758184486,0.43460233,98532.0,98531.0,1.00333511]
[1738758185269,0.43260233,98532.0,98531.0,1.00333511]
[1738758186028,0.49351233,98532.0,98531.0,1.0]
[1738758187633,0.43260233,98532.0,98531.0,1.00333511]
[1738758188191,0.20426833,98532.0,98531.0,1.00333511]
[1738758188563,0.20626833,98532.0,98531.0,1.00333511]
[1738758188779,0.15926833,98532.0,98531.0,1.00333511]
[1738758189005,0.15926833,98532.0,98531.0,1.16633825]
[1738758189137,0.15387081,98532.0,98531.0,1.16633825]
[1738758189572,0.15187081,98532.0,98531.0,1.16633825]
[1738758190275,0.04936716,98532.0,98531.0,1.29153825]
[1738758190478,4.8e-07,98532.0,98531.0,1.46453825]
[1738758190683,0.09084698,98545.0,98544.0,0.17855111]
[1738758190891,0.09084698,98545.0,98544.0,0.40886565]
[1738758191093,0.09084698,98545.0,98544.0,0.40785111]
[1738758192159,0.09098745,98545.0,98544.0,0.40885111]
[1738758193311,0.04645894,98545.0,98544.0,0.41885111]
[1738758193512,4.7e-07,98545.0,98544.0,0.41885111]
[1738758193719,0.0001069,98558.0,98557.0,0.15553111]
[1738758193957,0.00057493,98558.0,98557.0,0.17954547]
[1738758195401,0.00057493,98558.0,98557.0,0.32954547]
[1738758195611,0.00057493,98558.0,98557.0,0.32853111]
[1738758195828,0.00057493,98558.0,98557.0,0.32953111]
[1738758197724,0.00057493,98558.0,98557.0,0.32853111]
[1738758198220,0.00057493,98558.0,98557.0,0.32953111]
[1738758199482,1.02173224,98602.0,98576.0,0.15550111]
[1738758199656,1.02173224,98602.0,98576.0,0.38230111]
[1738758199896,0.00023035,98577.0,98576.0,0.40530111]
[1738758200925,0.00023035,98577.0,98576.0,0.43361399]
[1738758201285,0.00023035,98577.0,98576.0,0.40530111]
[1738758202291,0.00013963,98577.0,98576.0,0.40530111]
[1738758203206,0.00013963,98577.0,98576.0,0.41615468]
[1738758204568,0.00013963,98577.0,98576.0,0.4476978]
[1738758205626,0.00013963,98577.0,98576.0,0.4576978]
[1738758205627,6.3e-07,98577.0,98576.0,0.4576978]
[1738758206041,6.3e-07,98577.0,98576.0,0.42565468]
[1738758206783,6.3e-07,98577.0,98576.0,0.4463422]
[1738758208342,0.152089,98627.0,98600.0,0.15546411]
[1738758208560,0.00728,98622.0,98600.0,0.15647814]
[1738758209932,0.00728,98622.0,98600.0,0.15546411]
[1738758210651,1.02173224,98620.0,98600.0,0.15546411]
[1738758214581,1.02173224,98620.0,98600.0,0.16643357]
[1738758214758,1.02173224,98611.0,98600.0,0.16643357]
[1738758216503,1.02173224,98611.0,98600.0,0.18650684]
[1738758216837,0.00728,98622.0,98600.0,0.18650684]
[1738758217252,1.02173224,98612.0,98600.0,0.18650684]
[1738758218198,0.01885578,98621.0,98600.0,0.18650684]
[1738758218970,1.02173224,98616.0,98600.0,0.18650684]
[1738758219736,0.03016925,98615.0,98600.0,0.18650684]
[1738758220913,0.03016925,98615.0,98600.0,0.18600684]
[1738758221474,1.02173224,98616.0,98600.0,0.18600684]
[1738758223562,0.10272815,98601.0,98600.0,0.03387784]
[1738758223974,0.10864048,98601.0,98600.0,0.03387784]
[1738758224140,0.12758,98601.0,98600.0,0.03387784]
[1738758224343,0.12758,98601.0,98600.0,0.18600684]
[1738758227083,0.12758,98601.0,98600.0,0.18597891]
[1738758237382,0.12758,98601.0,98589.0,0.152145]
[1738758237383,0.0751,98600.0,98589.0,0.152145]
[1738758237582,0.25463465,98599.0,98590.0,0.02069528]
[1738758237795,0.10842602,98599.0,98598.0,0.00283511]
[1738758238015,0.26055702,98599.0,98589.0,0.152146]
[1738758238214,0.26055702,98599.0,98598.0,0.00283511]
[1738758238416,0.26055702,98599.0,98590.0,0.152144]
[1738758238674,0.26055702,98599.0,98598.0,0.00283511]
[1738758238875,0.01893952,98598.0,98597.0,0.00283511]
[1738758239145,0.12736441,98598.0,98597.0,0.00283511]
[1738758240347,0.12736441,98598.0,98597.0,0.15496911]
[1738758240552,0.12736441,98598.0,98597.0,0.16533146]
[1738758240944,0.12144317,98598.0,98597.0,0.16533146]
[1738758241174,0.12735741,98598.0,98597.0,0.16533146]
[1738758247517,0.02485376,98598.0,98597.0,0.16634562]
[1738758247724,0.01893952,98598.0,98597.0,0.39304562]
[1738758247925,0.01893952,98598.0,98597.0,0.41503146]
[1738758248155,0.0002245,98601.0,98600.0,0.30496411]
[1738758248308,0.09054417,98626.0,98625.0,0.15492611]
[1738758248511,0.09054417,98626.0,98625.0,0.17792611]
[1738758248850,0.0001069,98626.0,98625.0,0.38813991]
[1738758248999,0.0001069,98626.0,98625.0,0.38712611]
[1738758249608,0.00024723,98626.0,98625.0,0.38712611]
[1738758253057,6e-07,98659.0,98643.0,0.02583511]
[1738758253266,6e-07,98659.0,98643.0,0.15489811]
[1738758254103,6e-07,98659.0,98643.0,0.17891165]
[1738758254275,6e-07,98659.0,98643.0,0.17789811]
[1738758254475,6e-07,98659.0,98643.0,0.1789116]
[1738758255290,6e-07,98659.0,98643.0,0.18973829]
[1738758257429,6e-07,98659.0,98643.0,0.26553829]
[1738758257637,6e-07,98659.0,98643.0,0.2645248]
[1738758259505,6e-07,98659.0,98643.0,0.1887248]
[1738758259715,6e-07,98659.0,98643.0,0.18973828]
[1738758259939,6e-07,98659.0,98643.0,0.1887248]
[1738758260751,6e-07,98659.0,98643.0,0.1657248]
[1738758261315,0.048,98651.0,98643.0,0.16288969]
[1738758261519,0.10272815,98644.0,98643.0,0.1861494]
[1738758261721,0.1089581,98644.0,98643.0,0.1861494]
[1738758264482,0.1089581,98644.0,98643.0,0.0136618]
[1738758265411,0.1089581,98644.0,98643.0,0.00283511]
[1738758265612,0.1089581,98644.0,98637.0,0.0198361]
[1738758265765,0.10250365,98643.0,98642.0,0.00283511]
[1738758266107,0.10873091,98643.0,98642.0,0.00283511]
[1738758267563,0.10873091,98643.0,98642.0,0.00163511]
[1738758268481,0.10873091,98643.0,98642.0,0.15370011]
[1738758271947,0.10873091,98643.0,98642.0,0.00163511]
[1738758273594,0.10873091,98643.0,98642.0,0.15370011]
[1738758273790,0.00622726,98643.0,98642.0,0.15370011]
[1738758274028,0.00622726,98643.0,98642.0,0.32771371]
[1738758274211,0.0001068,98655.0,98654.0,0.00163511]
[1738758274381,0.0001068,98655.0,98654.0,0.15368111]
[1738758274586,0.0001068,98655.0,98654.0,0.15469456]
[1738758275318,0.0001068,98655.0,98654.0,0.18769456]
[1738758276717,0.0001068,98655.0,98654.0,0.19834546]
[1738758277759,0.0001068,98655.0,98654.0,0.21076359]
[1738758277960,0.0001068,98655.0,98654.0,0.22216827]
[1738758279968,0.0001068,98655.0,98654.0,0.19733201]
[1738758280172,0.0001068,98655.0,98654.0,0.21826591]
[1738758280479,0.0001068,98655.0,98654.0,0.21725259]
[1738758280706,0.0001068,98655.0,98654.0,0.36725259]
[1738758280824,0.01666667,98673.0,98668.0,0.31365911]
[1738758281025,0.01666667,98673.0,98668.0,0.33665911]
[1738758281229,0.00057467,98669.0,98668.0,0.33665911]
[1738758283839,0.01666667,98673.0,98672.0,0.31365311]
[1738758284018,0.01680689,98673.0,98672.0,0.33665311]
[1738758287016,0.00992,98694.0,98693.0,0.15362111]
[1738758287223,0.11242365,98694.0,98693.0,0.15362111]
[1738758287731,0.11837313,98694.0,98693.0,0.15362111]
[1738758289078,0.11837313,98694.0,98693.0,0.15312111]
[1738758291572,0.11847983,98694.0,98693.0,0.15312111]
[1738758292124,0.1237,98693.0,98692.0,0.00113511]
[1738758292326,0.23216337,98693.0,98692.0,0.00113511]
[1738758292525,0.24487367,98693.0,98692.0,0.00113511]
[1738758293243,0.24487367,98693.0,98692.0,0.0114807]
[1738758293617,0.24487367,98693.0,98692.0,0.00113511]
[1738758294090,0.24487367,98693.0,98692.0,0.15312311]
[1738758294310,0.24487367,98693.0,98692.0,0.00113511]
[1738758295496,0.24582137,98693.0,98692.0,0.00113511]
[1738758297117,0.24582137,98693.0,98692.0,0.0114513]
[1738758298315,0.27215494,98693.0,98692.0,0.01031619]
[1738758298515,0.27215494,98693.0,98643.0,0.0802]
[1738758298516,0.1241,98681.0,98674.0,0.00113511]
[1738758298718,1.14583224,98681.0,98680.0,0.00113511]
[1738758298839,1.29783624,98681.0,98680.0,0.00113511]
[1738758299445,0.152018,98672.0,98671.0,0.00113511]
[1738758300053,0.25452165,98672.0,98671.0,0.00113511]
[1738758301351,0.10250365,98672.0,98671.0,0.00113511]
[1738758301723,0.25452165,98672.0,98671.0,0.00113511]
[1738758302279,0.25452165,98672.0,98671.0,0.00063511]
[1738758302489,0.25452165,98672.0,98633.0,0.023]
[1738758302490,0.0455,98671.0,98652.0,0.202732]
[1738758302692,0.0455,98671.0,98655.0,0.00063511]
[1738758302693,0.45727165,98656.0,98655.0,0.00063511]
[1738758303122,0.45727165,98656.0,98651.0,0.00046787]
[1738758303123,0.152049,98652.0,98651.0,0.00046787]
[1738758303327,0.26768836,98652.0,98651.0,0.00046787]
[1738758303910,0.26768836,98652.0,98651.0,0.00110298]
[1738758304110,0.34548836,98652.0,98651.0,0.00046787]
[1738758304295,0.34548836,98652.0,98651.0,0.00110298]
[1738758304691,0.19343936,98652.0,98651.0,0.00110298]
[1738758304895,0.19343936,98652.0,98651.0,0.15315398]
[1738758305191,0.10974365,98652.0,98651.0,0.15315398]
[1738758305385,0.11564744,98652.0,98651.0,0.00110298]
[1738758305594,0.26769644,98652.0,98651.0,0.00110298]
[1738758305964,0.11564744,98652.0,98651.0,0.00110298]
[1738758306370,0.26769644,98652.0,98651.0,0.00046787]
[1738758306634,0.34509644,98652.0,98651.0,0.00046787]
[1738758307772,0.42470178,98652.0,98651.0,0.00046787]
[1738758307981,0.34509644,98652.0,98651.0,0.00046787]
[1738758309537,0.34509644,98652.0,98651.0,1.00046787]
[1738758313229,0.40600644,98652.0,98651.0,1.00046787]
[1738758313681,0.11564744,98652.0,98651.0,1.00110298]